fUSD/lending_fUSD_20260108
["ID","MTS","AMOUNT","RATE_DAILY","PERIOD"]
[401088227,1767915044313,-695.39793187,0.00017099,2]
[401088228,1767915044323,-250.0,0.00017099,2]
[401088229,1767915044332,-250.0,0.00017099,2]
[401088230,1767915044342,-500.0,0.00017099,2]
[401088231,1767915044352,-250.0,0.00017099,2]
[401088232,1767915044362,-500.0,0.00017099,2]
[401088233,1767915044371,-250.0,0.00017099,2]
[401088234,1767915044381,-500.0,0.00017099,2]
[401088235,1767915044390,-250.0,0.00017099,2]
[401088236,1767915044400,-500.0,0.00017099,2]
[401088237,1767915044412,-250.0,0.00017099,2]
[401088238,1767915044424,-500.0,0.00017099,2]
[401088239,1767915044436,-250.0,0.00017099,2]
[401088240,1767915044447,-500.0,0.00017099,2]
[401088241,1767915044458,-250.0,0.00017099,2]
[401088242,1767915044467,-500.0,0.00017099,2]
[401088243,1767915044476,-275.30162004,0.00017099,2]
[401088244,1767915044485,-500.0,0.00017099,2]
[401088245,1767915044495,-359.76179104,0.00017099,2]
[401088246,1767915044504,-500.0,0.00017099,2]
[401088247,1767915044513,-500.0,0.00017099,2]
[401088248,1767915044522,-500.0,0.00017099,2]
[401088249,1767915044531,-500.0,0.00017099,2]
[401088250,1767915044542,-2000.0,0.00017099,2]
[401088251,1767915044551,-2000.0,0.00017099,2]
[401088252,1767915044561,-2000.0,0.00017099,2]
[401088253,1767915044571,-322.6107,0.00017099,2]
[401088254,1767915044580,-2000.0,0.00017099,2]
[401088255,1767915044588,-2000.0,0.00017099,2]
[401088256,1767915044598,-2000.0,0.00017099,2]
[401088257,1767915044607,-2000.0,0.00017099,2]
[401088258,1767915044616,-2000.0,0.00017099,2]
[401088259,1767915044625,-1000.0,0.00017099,2]
[401088260,1767915044636,-578.20924308,0.00017099,2]
[401088261,1767915044646,-500.0,0.00017099,2]
[401088262,1767915044656,-529.58639713,0.00017099,2]
[401088263,1767915044666,-500.0,0.00017099,2]
[401088264,1767915044676,-500.0,0.00017099,2]
[401088265,1767915044686,-500.0,0.00017099,2]
[401088266,1767915044695,-250.0,0.00017099,2]
[401088267,1767915044704,-553.64373807,0.00017099,2]
[401088268,1767915044713,-1000.0,0.000171,2]
[401088269,1767915044723,-13020.61450807,0.00017113,2]
[401088270,1767915044732,-12991.16949377,0.00017113,2]
[401088271,1767915044741,-972.0,0.0001715,2]
[401088272,1767915044750,-972.0,0.00017205,2]
[401088273,1767915044759,-318.0,0.00017224,2]
[401088274,1767915044768,-2129.0,0.0001723,2]
[401088275,1767915044778,-972.0,0.0001726,2]
[401088276,1767915044787,-2195.8,0.0001726,2]
[401088277,1767915044797,-318.0,0.00017292,2]
[401088278,1767915044806,-972.0,0.00017315,2]
[401088279,1767915044815,-157.72323008,0.00017349,2]
[401088280,1767915045075,-972.0,0.00017369,2]
[401088281,1767915045126,-1000.0,0.000174,2]
[401088283,1767915045135,-972.0,0.00017424,2]
[401088285,1767915045144,-318.0,0.00017474,2]
[401088286,1767915045154,-972.0,0.00017479,2]
[401088287,1767915045163,-2000.0,0.000175,2]
[401088288,1767915045172,-1600.92502348,0.000175,2]
[401088289,1767915045181,-972.0,0.00017534,2]
[401088290,1767915045191,-2195.8,0.00017534,2]
[401088291,1767915045201,-6453.0,0.00017548,2]
[401088292,1767915045210,-5888.0,0.00017582,2]
[401088293,1767915045220,-972.0,0.00017588,2]
[401088294,1767915045229,-261.83496494,0.00017607,2]
[401088295,1767915045239,-6888.13272826,0.0001764,2]
[401088296,1767915045248,-992.45863703,0.00017643,2]
[401088297,1767915045257,-151.0,0.00017647,2]
[401088298,1767915045267,-278.47145147,0.00017647,2]
[401088299,1767915045276,-574.12855637,0.00017647,2]
[401088300,1767915045286,-5888.0,0.00017683,2]
[401088301,1767915045296,-500.0,0.00017699,2]
[401088302,1767915045305,-500.0,0.00017699,2]
[401088303,1767915045315,-330.37464563,0.00017699,2]
[401088304,1767915045324,-628.5623616,0.000177,2]
[401088305,1767915045333,-1000.0,0.000177,2]
[401088306,1767915045342,-336.25,0.00017754,2]
[401088307,1767915045351,-500.0,0.00017775,2]
[401088308,1767915045360,-500.0,0.00017775,2]
[401088309,1767915045369,-500.0,0.00017775,2]
[401088310,1767915045378,-500.0,0.00017775,2]
[401088311,1767915045387,-515.32073646,0.00017775,2]
[401088312,1767915045396,-361.82992148,0.00017775,2]
[401088313,1767915045405,-500.0,0.00017775,2]
[401088314,1767915045415,-500.0,0.00017775,2]
[401088315,1767915045424,-517.79961316,0.00017775,2]
[401088316,1767915045433,-500.0,0.00017775,2]
[401088317,1767915045443,-500.0,0.00017775,2]
[401088318,1767915045456,-500.0,0.00017775,2]
[401088319,1767915045466,-500.0,0.00017775,2]
[401088320,1767915045475,-500.0,0.00017775,2]
[401088321,1767915045484,-500.0,0.00017775,2]
[401088322,1767915045494,-500.0,0.00017775,2]
[401088323,1767915045503,-500.0,0.00017775,2]
[401088324,1767915045512,-500.0,0.00017775,2]
[401088325,1767915045522,-500.0,0.00017775,2]
[401088326,1767915045531,-500.0,0.00017775,2]
[401088327,1767915045540,-541.22505,0.00017786,2]
[401088328,1767915045550,-500.0,0.00017807,2]
[401088329,1767915045559,-2195.8,0.00017808,2]
[401088330,1767915045570,-482.57386,0.0001782,2]
[401088331,1767915045579,-482.57385,0.0001782,2]
[401088332,1767915045588,-482.57385,0.0001783,2]
[401088333,1767915045598,-2000.0,0.00017856,2]
[401088334,1767915045607,-200.0,0.00017856,2]
[401088335,1767915045617,-482.57386,0.0001786,2]
[401088336,1767915045627,-482.57386,0.0001788,2]
[401088337,1767915045636,-318.0,0.00017886,2]
[401088338,1767915045645,-1000.0,0.00017895,2]
[401088339,1767915045654,-10000.0,0.000179,2]
[401088340,1767915045663,-158.69212054,0.000179,2]
[401088341,1767915045672,-13020.61450807,0.000179,2]
[401088342,1767915045682,-12991.16949377,0.000179,2]
[401088343,1767915045691,-275.45766541,0.000179,2]
[401088344,1767915045700,-13823.0,0.000179,2]
[401088345,1767915045709,-1000.0,0.00017904,2]
[401088346,1767915045719,-482.57386,0.0001791,2]
[401088347,1767915045728,-235.35795411,0.00017973,2]
[401088348,1767915045737,-500.0,0.00017973,2]
[401088349,1767915045746,-500.75581913,0.00017973,2]
[401088350,1767915045755,-500.0,0.00017973,2]
[401088351,1767915045764,-504.24318867,0.00017973,2]
[401088352,1767915045773,-500.0,0.00017973,2]
[401088353,1767915045783,-500.0,0.00017973,2]
[401088354,1767915045792,-500.0,0.00017973,2]
[401088355,1767915045801,-500.0,0.00017973,2]
[401088356,1767915045810,-500.0,0.00017973,2]
[401088357,1767915045819,-500.0,0.00017973,2]
[401088358,1767915045829,-500.0,0.00017973,2]
[401088359,1767915045838,-500.0,0.00017973,2]
[401088360,1767915045852,-500.0,0.00017973,2]
[401088361,1767915045861,-504.86489793,0.00017973,2]
[401088362,1767915045870,-569.64539879,0.00017973,2]
[401088363,1767915045880,-500.0,0.00017973,2]
[401088364,1767915045889,-500.0,0.00017973,2]
[401088365,1767915045898,-500.0,0.00017973,2]
[401088366,1767915045907,-500.0,0.00017973,2]
[401088367,1767915045916,-500.0,0.00017973,2]
[401088368,1767915045926,-500.0,0.00017973,2]
[401088369,1767915045935,-500.0,0.00017973,2]
[401088370,1767915045945,-500.0,0.00017973,2]
[401088371,1767915045955,-500.0,0.00017973,2]
[401088372,1767915045965,-150.0,0.00017973,2]
[401088373,1767915045974,-151.0,0.00017987,2]
[401088374,1767915045984,-500.0,0.00017989,2]
[401088375,1767915045994,-500.0,0.00017989,2]
[401088376,1767915046004,-500.0,0.00017989,2]
[401088377,1767915046013,-500.0,0.00017989,2]
[401088378,1767915046023,-500.0,0.00017989,2]
[401088379,1767915046035,-500.0,0.00017989,2]
[401088380,1767915046045,-19519.631684,0.0001799,2]
[401088381,1767915046055,-844160.174165,0.0001799,2]
[401088382,1767915046065,-24381.2602761,0.0001799,2]
[401088383,1767915046075,-17485.6795645,0.0001799,2]
[401088384,1767915046085,-162625.476996,0.0001799,2]
[401088385,1767915046094,-151.0,0.00017997,2]
[401088386,1767915046107,-500.0,0.00017999,2]
[401088387,1767915046118,-500.0,0.00017999,2]
[401088388,1767915046127,-500.0,0.00017999,2]
[401088389,1767915046137,-500.0,0.00017999,2]
[401088390,1767915046146,-500.0,0.00017999,2]
[401088391,1767915046155,-363.73176274,0.00017999,2]
[401088392,1767915046165,-300.0,0.00017999,2]
[401088393,1767915046175,-666.0,0.00017999,2]
[401088394,1767915046184,-500.0,0.00017999,2]
[401088395,1767915046193,-500.0,0.00017999,2]
[401088396,1767915046203,-300.0,0.00017999,2]
[401088397,1767915046212,-500.0,0.00017999,2]
[401088398,1767915046221,-500.0,0.00017999,2]
[401088400,1767915046235,-500.0,0.00017999,2]
[401088402,1767915046245,-300.0,0.00017999,2]
[401088404,1767915046254,-300.0,0.00017999,2]
[401088405,1767915046264,-666.0,0.00017999,2]
[401088407,1767915046274,-500.0,0.00017999,2]
[401088408,1767915046284,-500.0,0.00017999,2]
[401088409,1767915046294,-500.0,0.00017999,2]
[401088410,1767915046303,-500.0,0.00017999,2]
[401088411,1767915046313,-500.0,0.00017999,2]
[401088412,1767915046323,-500.0,0.00017999,2]
[401088413,1767915046333,-500.0,0.00017999,2]
[401088414,1767915046342,-500.0,0.00017999,2]
[401088415,1767915046353,-500.0,0.00017999,2]
[401088416,1767915046362,-500.0,0.00017999,2]
[401088417,1767915046371,-611.9,0.00017999,2]
[401088418,1767915046381,-300.0,0.00017999,2]
[401088419,1767915046390,-542.95517596,0.00017999,2]
[401088420,1767915046400,-500.0,0.00017999,2]
[401088422,1767915046410,-500.0,0.00017999,2]
[401088423,1767915046419,-500.0,0.00017999,2]
[401088424,1767915046428,-500.0,0.00017999,2]
[401088425,1767915046438,-500.0,0.00017999,2]
[401088426,1767915046447,-500.0,0.00017999,2]
[401088427,1767915046457,-500.0,0.00017999,2]
[401088428,1767915046466,-500.0,0.00017999,2]
[401088429,1767915046476,-500.0,0.00017999,2]
[401088430,1767915046485,-500.0,0.00017999,2]
[401088431,1767915046495,-502.25127096,0.00017999,2]
[401088432,1767915046504,-150.1,0.00017999,2]
[401088433,1767915046513,-150.1,0.00017999,2]
[401088434,1767915046522,-150.1,0.00017999,2]
[401088435,1767915046531,-300.0,0.00017999,2]
[401088436,1767915046541,-11518.53087549,0.00017999,2]
[401088437,1767915046550,-300.0,0.00017999,2]
[401088438,1767915046559,-300.0,0.00017999,2]
[401088439,1767915046568,-666.0,0.00017999,2]
[401088440,1767915046578,-666.0,0.00017999,2]
[401088441,1767915046587,-300.0,0.00017999,2]
[401088442,1767915046597,-1000.0,0.00018,2]
[401088443,1767915046606,-836.47750939,0.00018,2]
[401088444,1767915046618,-2321984.7598871,0.00018,2]
[401088445,1767915047797,-364.47543328,0.00010798,2]
[401088446,1767915047809,-135.52456672,0.00010798,2]
[401088447,1767915047820,-500.0,0.00010798,2]
[401088448,1767915047830,-500.0,0.00010798,2]
[401088449,1767915047839,-500.0,0.00010798,2]
[401088450,1767915047849,-500.0,0.00010798,2]
[401088451,1767915047858,-500.0,0.00010798,2]
[401088452,1767915047868,-500.0,0.00010798,2]
[401088453,1767915047877,-500.0,0.00010798,2]
[401088454,1767915047886,-500.0,0.00010798,2]
[401088455,1767915047895,-500.0,0.00010798,2]
[401088456,1767915047905,-500.0,0.00010798,2]
[401088457,1767915047915,-500.0,0.00010798,2]
[401088458,1767915047926,-81882.6489124,0.00018,2]
[401088459,1767915048811,-456.235,0.00010706,2]
[401088460,1767915048850,-6.90963878,0.00010706,2]
[401088461,1767915048859,-995.07673672,0.00018,2]
[401088462,1767915049786,-2608.63388952,0.00018,2]
[401088463,1767915049816,-746263.13147495,0.00018,2]
[401088464,1767915049845,-755558.56492332,0.00018,2]
[401088475,1767915414688,-168.91999983,0.00010647,2]
[401088476,1767915764826,5560.28270742,0.00010483,2]
[401088477,1767915764853,4439.71729258,0.00010483,2]
[401088478,1767915776031,5560.29270742,0.00010483,2]
[401088479,1767915776063,4439.70729258,0.00010483,2]
[401088480,1767915787901,5560.30270742,0.00010483,2]
[401088481,1767915787924,4439.69729258,0.00010483,2]
[401088482,1767915798021,5560.31270742,0.00010483,2]
[401088483,1767915798050,4431.54729258,0.00010483,2]
[401088484,1767916006952,173.71,0.00010027,2]
[401088485,1767916147029,200.66738953,0.0001,2]
[401088486,1767916193974,30015.272104,0.000226,120]
[401088511,1767916232832,-8.39565751,0.00010647,2]
[401088512,1767916232842,-301.36815664,0.00010653,2]
[401088513,1767916232851,-250.0,0.0001066,2]
[401088514,1767916232861,-500.0,0.00010698,2]
[401088515,1767916232870,-1200.0,0.00010786,2]
[401088516,1767916232880,-289.11476837,0.00010787,2]
[401088517,1767916232889,-151.0,0.00010787,2]
[401088518,1767916232899,-151.0,0.00010787,2]
[401088519,1767916232908,-151.0,0.00010787,2]
[401088520,1767916232918,-151.0,0.00010787,2]
[401088521,1767916232927,-151.0,0.00010787,2]
[401088522,1767916232936,-151.0,0.00010787,2]
[401088523,1767916232945,-151.0,0.00010787,2]
[401088524,1767916232955,-151.0,0.00010787,2]
[401088525,1767916232964,-151.0,0.00010787,2]
[401088526,1767916232973,-151.0,0.00010787,2]
[401088527,1767916232984,-151.0,0.00010787,2]
[401088528,1767916232993,-151.0,0.00010787,2]
[401088529,1767916233003,-500.0,0.00010791,2]
[401088530,1767916233012,-500.0,0.00010791,2]
[401088531,1767916233022,-500.0,0.00010791,2]
[401088532,1767916233031,-500.0,0.00010791,2]
[401088533,1767916233042,-378.58648827,0.00010791,2]
[401088534,1767916233051,-500.0,0.00010791,2]
[401088535,1767916233061,-500.0,0.00010791,2]
[401088536,1767916233073,-500.0,0.00010791,2]
[401088537,1767916233083,-500.0,0.00010791,2]
[401088538,1767916233092,-500.0,0.00010791,2]
[401088539,1767916233102,-500.0,0.00010791,2]
[401088540,1767916233111,-500.0,0.00010791,2]
[401088541,1767916233120,-500.0,0.00010791,2]
[401088542,1767916233130,-500.0,0.00010791,2]
[401088543,1767916233139,-500.0,0.00010791,2]
[401088544,1767916233148,-500.0,0.00010791,2]
[401088545,1767916233158,-500.0,0.00010791,2]
[401088546,1767916233167,-500.0,0.00010791,2]
[401088547,1767916233176,-500.0,0.00010791,2]
[401088548,1767916233185,-500.0,0.00010791,2]
[401088549,1767916233194,-500.0,0.00010791,2]
[401088550,1767916233203,-500.0,0.00010791,2]
[401088551,1767916233213,-500.0,0.00010791,2]
[401088552,1767916233222,-303.82112738,0.00010791,2]
[401088553,1767916233231,-1174.44788892,0.00010791,2]
[401088554,1767916233240,-869.7386154,0.00010791,2]
[401088555,1767916233252,-304.70927352,0.00010791,2]
[401088556,1767916233261,-1174.44788892,0.00010791,2]
[401088557,1767916233270,-1174.44788892,0.00010791,2]
[401088558,1767916233280,-1174.44788892,0.00010791,2]
[401088559,1767916233289,-1174.44788892,0.00010791,2]
[401088560,1767916233298,-1174.44788892,0.00010791,2]
[401088561,1767916233307,-1174.44788892,0.00010791,2]
[401088562,1767916233316,-381.74262336,0.00010791,2]
[401088563,1767916233328,-792.70526556,0.00010791,2]
[401088564,1767916233337,-1174.44788892,0.00010791,2]
[401088565,1767916233347,-1174.44788892,0.00010791,2]
[401088566,1767916233356,-1174.44788892,0.00010791,2]
[401088567,1767916233690,-1167.04012485,0.00010791,2]
[401088568,1767916234035,-222.52012247,0.0001079,2]
[401088569,1767916234044,-551.06281284,0.0001079,2]
[401088570,1767916234053,-7.40776407,0.00010791,2]
[401088571,1767916234062,-1174.44788892,0.00010791,2]
[401088572,1767916234071,-1174.44788892,0.00010791,2]
[401088573,1767916234080,-1174.44788892,0.00010791,2]
[401088574,1767916234090,-1174.44788892,0.00010791,2]
[401088575,1767916234099,-1174.44788892,0.00010791,2]
[401088576,1767916234108,-1174.44788892,0.00010791,2]
[401088577,1767916234128,-1174.44788892,0.00010791,2]
[401088578,1767916234139,-1174.44788892,0.00010791,2]
[401088579,1767916234148,-1174.44788892,0.00010791,2]
[401088580,1767916234158,-1174.44788892,0.00010791,2]
[401088581,1767916234167,-1174.44788892,0.00010791,2]
[401088582,1767916234177,-1174.44788892,0.00010791,2]
[401088583,1767916234187,-1174.44788892,0.00010791,2]
[401088584,1767916234197,-1174.44788892,0.00010791,2]
[401088585,1767916234206,-1174.44788892,0.00010791,2]
[401088586,1767916234216,-1174.44788892,0.00010791,2]
[401088587,1767916234226,-1174.44788892,0.00010791,2]
[401088588,1767916234236,-1174.44788892,0.00010791,2]
[401088589,1767916234245,-1174.44788892,0.00010791,2]
[401088590,1767916234255,-1174.44788892,0.00010791,2]
[401088591,1767916234265,-1174.44788892,0.00010791,2]
[401088592,1767916234274,-1174.44788892,0.00010791,2]
[401088593,1767916234284,-1174.44788892,0.00010791,2]
[401088594,1767916234294,-1174.44788892,0.00010791,2]
[401088595,1767916234303,-1189.92010939,0.00010791,2]
[401088596,1767916234314,-1189.92010939,0.00010791,2]
[401088597,1767916234323,-1189.92010939,0.00010791,2]
[401088598,1767916234334,-1189.92010939,0.00010791,2]
[401088599,1767916234344,-661.67788344,0.00010791,2]
[401088600,1767916234358,-528.24222595,0.00010791,2]
[401088601,1767916234367,-1189.92010939,0.00010791,2]
[401088602,1767916234377,-1189.92010939,0.00010791,2]
[401088603,1767916234387,-1189.92010939,0.00010791,2]
[401088604,1767916234397,-1189.92010939,0.00010791,2]
[401088605,1767916234407,-1189.92010939,0.00010791,2]
[401088606,1767916234417,-1189.92010939,0.00010791,2]
[401088607,1767916234427,-521.18043678,0.00010791,2]
[401088608,1767916234441,-668.73967261,0.00010791,2]
[401088609,1767916234451,-1189.92010939,0.00010791,2]
[401088610,1767916234461,-1071.05324819,0.00010791,2]
[401088611,1767916234473,-118.8668612,0.00010791,2]
[401088612,1767916234482,-1128.53276028,0.00010791,2]
[401088613,1767916234497,-61.38734911,0.00010791,2]
[401088614,1767916234506,-1189.92010939,0.00010791,2]
[401088615,1767916234516,-435.48572126,0.00010791,2]
[401088769,1767916240254,-500.0,0.00010792,2]
[401088770,1767916240264,-392.65,0.00010792,2]
[401088771,1767916240274,-392.65,0.00011065,2]
[401088772,1767916240283,-392.65,0.00011339,2]
[401088773,1767916240293,-392.65,0.00011613,2]
[401088774,1767916240302,-250.0,0.00011712,2]
[401088775,1767916240312,-300.0,0.00011712,2]
[401088776,1767916240322,-250.0,0.00011712,2]
[401088777,1767916240331,-195.0,0.00011712,2]
[401088778,1767916240341,-300.0,0.00011712,2]
[401088779,1767916240350,-193.0,0.00011712,2]
[401088780,1767916240359,-195.0,0.00011712,2]
[401088781,1767916240369,-14481.61962575,0.00011761,2]
[401088782,1767916240379,-1000000.0,0.00011762,2]
[401088783,1767916240388,-150.0,0.00011861,2]
[401088784,1767916240398,-690.97,0.00011862,2]
[401088785,1767916240407,-150.99,0.00011862,2]
[401088786,1767916240416,-2231.21,0.00011862,2]
[401088787,1767916240427,-1336.36,0.00011862,2]
[401088788,1767916240436,-19999.99,0.00011862,2]
[401088789,1767916240446,-1680.0,0.00011865,2]
[401088790,1767916240455,-392.66,0.00011887,2]
[401088791,1767916240464,-1500.0,0.00012198,2]
[401088792,1767916240473,-500.0,0.00012228,2]
[401088793,1767916240483,-1000.0,0.00012399,2]
[401088794,1767916240496,-14481.61962569,0.00012443,2]
[401088795,1767916240506,-768.01,0.00012484,2]
[401088796,1767916240515,-323.67,0.00012551,2]
[401088797,1767916240525,-362.75,0.00012861,2]
[401088798,1767916240534,-255.0,0.0001294,2]
[401088799,1767916240543,-2351.0,0.00013051,2]
[401088800,1767916240553,-14481.61962569,0.00013125,2]
[401088801,1767916240562,-8139.5,0.00013138,2]
[401088802,1767916240572,-152.0,0.00013268,2]
[401088803,1767916240581,-169.13255574,0.00013268,2]
[401088804,1767916240591,-152.0,0.00013268,2]
[401088805,1767916240601,-152.0,0.00013268,2]
[401088806,1767916240610,-152.0,0.00013268,2]
[401088807,1767916240619,-152.0,0.00013268,2]
[401088808,1767916240629,-152.0,0.00013268,2]
[401088809,1767916240639,-152.0,0.00013268,2]
[401088810,1767916240649,-151.0,0.00013338,2]
[401088811,1767916240659,-38384.4,0.00013341,2]
[401088812,1767916240668,-500.0,0.00013397,2]
[401088813,1767916240678,-3240.0,0.00013425,2]
[401088814,1767916240687,-362.75,0.00013575,2]
[401088815,1767916240696,-150.0,0.00013596,2]
[401088816,1767916240705,-2500.0,0.00013599,2]
[401088817,1767916240714,-319.78,0.00013649,2]
[401088818,1767916240723,-500.0,0.00013698,2]
[401088819,1767916240732,-500.0,0.00013698,2]
[401088820,1767916240741,-500.0,0.00013698,2]
[401088821,1767916240751,-500.0,0.00013698,2]
[401088822,1767916240760,-500.0,0.00013698,2]
[401088823,1767916240769,-500.0,0.00013698,2]
[401088824,1767916240778,-500.0,0.00013698,2]
[401088825,1767916240788,-500.0,0.00013698,2]
[401088826,1767916240797,-500.0,0.00013698,2]
[401088827,1767916240806,-500.0,0.00013698,2]
[401088828,1767916240815,-502.25127096,0.00013698,2]
[401088829,1767916240824,-500.0,0.00013698,2]
[401088830,1767916240833,-500.0,0.00013698,2]
[401088831,1767916240843,-500.0,0.00013698,2]
[401088832,1767916240853,-500.0,0.00013698,2]
[401088833,1767916240862,-500.0,0.00013698,2]
[401088834,1767916240871,-500.0,0.00013698,2]
[401088835,1767916240880,-500.0,0.00013698,2]
[401088836,1767916240889,-500.0,0.00013698,2]
[401088837,1767916240898,-500.0,0.00013698,2]
[401088838,1767916240907,-500.0,0.00013698,2]
[401088839,1767916240917,-500.0,0.00013698,2]
[401088840,1767916240927,-500.0,0.00013698,2]
[401088841,1767916240936,-330.37464563,0.00013698,2]
[401088842,1767916240945,-500.0,0.00013698,2]
[401088843,1767916240954,-500.0,0.00013698,2]
[401088844,1767916240963,-500.0,0.00013698,2]
[401088845,1767916240972,-500.0,0.00013698,2]
[401088846,1767916240982,-500.0,0.00013698,2]
[401088847,1767916240992,-512.38385976,0.00013698,2]
[401088848,1767916241001,-539.56119265,0.00013698,2]
[401088849,1767916241010,-327.36851874,0.00013698,2]
[401088850,1767916241020,-500.0,0.00013698,2]
[401088851,1767916241029,-500.0,0.00013698,2]
[401088852,1767916241038,-500.0,0.00013698,2]
[401088853,1767916241047,-500.0,0.00013698,2]
[401088854,1767916241056,-500.0,0.00013698,2]
[401088855,1767916241065,-500.0,0.00013698,2]
[401088856,1767916241074,-515.32073646,0.00013698,2]
[401088857,1767916241083,-502.7457157,0.00013698,2]
[401088858,1767916241093,-500.0,0.00013698,2]
[401088859,1767916241102,-500.0,0.00013698,2]
[401088860,1767916241112,-500.0,0.00013698,2]
[401088861,1767916241121,-500.0,0.00013698,2]
[401088862,1767916241131,-500.0,0.00013698,2]
[401088863,1767916241140,-361.82992148,0.00013698,2]
[401088864,1767916241150,-500.0,0.00013698,2]
[401088865,1767916241159,-500.0,0.00013698,2]
[401088866,1767916241169,-500.0,0.00013698,2]
[401088867,1767916241178,-517.79961316,0.00013698,2]
[401088868,1767916241187,-500.0,0.00013698,2]
[401088869,1767916241196,-500.0,0.00013698,2]
[401088870,1767916241205,-500.0,0.00013698,2]
[401088871,1767916241214,-500.0,0.00013698,2]
[401088872,1767916241223,-500.0,0.00013698,2]
[401088873,1767916241232,-500.0,0.00013698,2]
[401088874,1767916241241,-500.0,0.00013698,2]
[401088875,1767916241250,-500.0,0.00013698,2]
[401088876,1767916241260,-500.0,0.00013698,2]
[401088877,1767916241270,-500.0,0.00013698,2]
[401088878,1767916241279,-500.0,0.00013698,2]
[401088879,1767916241288,-397.40808875,0.00013698,2]
[401088880,1767916241297,-500.0,0.00013698,2]
[401088881,1767916241307,-500.0,0.00013698,2]
[401088882,1767916241315,-500.0,0.00013698,2]
[401088883,1767916241325,-500.0,0.00013698,2]
[401088884,1767916241334,-500.0,0.00013698,2]
[401088885,1767916241343,-500.0,0.00013698,2]
[401088886,1767916241352,-3894.32,0.00013699,2]
[401088887,1767916241361,-453.97,0.00013699,2]
[401088888,1767916241370,-1095.68,0.00013699,2]
[401088889,1767916241379,-117143.29,0.00013699,2]
[401088890,1767916241388,-14481.61962569,0.00013807,2]
[401088891,1767916241398,-1000.0,0.00013949,2]
[401088892,1767916241407,-500.0,0.00013966,2]
[401088893,1767916241416,-250.0,0.00014068,2]
[401088894,1767916241425,-433.0,0.00014115,2]
[401088895,1767916241434,-362.75,0.0001429,2]
[401088896,1767916241443,-3292.0,0.00014356,2]
[401088897,1767916241723,-453.97,0.00014384,2]
[401088898,1767916241734,-14481.61962569,0.00014489,2]
[401088899,1767916241743,-158.69212054,0.00014562,2]
[401088900,1767916241752,-500.0,0.00014624,2]
[401088901,1767916241762,-500.0,0.00014624,2]
[401088902,1767916241771,-500.0,0.00014624,2]
[401088903,1767916241779,-500.0,0.00014624,2]
[401088904,1767916241788,-500.0,0.00014624,2]
[401088905,1767916241797,-500.0,0.00014624,2]
[401088906,1767916241807,-500.0,0.00014624,2]
[401088907,1767916241816,-500.0,0.00014624,2]
[401088908,1767916241825,-483.79003433,0.00014624,2]
[401088909,1767916241834,-500.0,0.00014624,2]
[401088910,1767916241843,-500.0,0.00014624,2]
[401088911,1767916241852,-622.57091342,0.00014624,2]
[401088912,1767916241861,-500.0,0.00014624,2]
[401088913,1767916241870,-500.0,0.00014624,2]
[401088914,1767916241879,-500.0,0.00014624,2]
[401088915,1767916241888,-500.0,0.00014624,2]
[401088916,1767916241897,-500.0,0.00014624,2]
[401088917,1767916241906,-500.0,0.00014624,2]
[401088918,1767916241915,-500.0,0.00014624,2]
[401088919,1767916241924,-500.0,0.00014624,2]
[401088920,1767916241933,-500.0,0.00014624,2]